Cogmind - Beta 17 @@@ ROGUE MODE // 2026.07.31 @ 22:08:45 Player: 4R-ZE3 Result: Destroyed by JG-R4Z(R) with Subdweller Machine Gun Performance ------------- Evolutions (0) 0 Regions Visited (2) 400 Robots Destroyed (19) 95 Value Destroyed (472) 472 Prototype IDs (0) 0 Alien Tech Used (0) 0 Bonus (0) 0 TOTAL SCORE: 967 Bonus ------- None Cogmind --------- Core Integrity 0/250 Matter 289/300 Energy 250/250 System Corruption 0% Temperature Cool (0) Movement Core (300) Ox5 Location -10/Subcaves Parts ------- > --- POWER (1) -------- Ion Engine > --- PROPULSION (2) --- (None) > --- UTILITY (2) ------ Improved Heat Sink Medium Storage Unit > --- WEAPON (2) ------- Light Assault Rifle > --- INVENTORY (10) --- Ion Engine Heat Sink Small Storage Unit Large Storage Unit Scrap Shield Light Assault Rifle Mace Mace Peak State ------------ > --- POWER ------------ Light Ion Engine > --- PROPULSION ------- Light Treads Light Treads > --- UTILITY ---------- Heat Sink Medium Storage Unit > --- WEAPON ----------- Light Assault Rifle Mace > --- INVENTORY -------- Ion Engine Small Storage Unit Small Laser Mace [Rating: 8] Favorites ----------- Power Light Ion Engine Engine Light Ion Engine Propulsion Light Treads Treads Light Treads Utility Medium Storage Unit Device Heat Sink Storage Medium Storage Unit Weapon Light Assault Rifle Energy Gun Small Laser Ballistic Gun Light Assault Rifle Impact Weapon Mace Build | -11 -10 -10 ------- Run | Yrd Mat Sub Slots Evolved . | . . . Power . | . . . Propulsion . | . . . Utility . | . . . Weapon . | . . . Parts Attached 15 | 6 9 . Power 2 | 1 1 . Engine 2 | 1 1 . Core . | . . . Reactor . | . . . Propulsion 3 | 2 1 . Treads 3 | 2 1 . Leg . | . . . Wheel . | . . . Hover . | . . . Flight . | . . . Utility 4 | 1 3 . Device 2 | . 2 . Storage 2 | 1 1 . Processor . | . . . Hackware . | . . . Protection . | . . . Artifact . | . . . Weapon 6 | 2 4 . Energy Gun 1 | 1 . . Energy Cannon . | . . . Ballistic Gun 4 | 1 3 . Ballistic Cannon . | . . . Launcher . | . . . Special Weapon . | . . . Impact Weapon 1 | . 1 . Slashing Weapon . | . . . Piercing Weapon . | . . . Special Melee Weapon . | . . . Unidentified Prototypes . | . . . Parts Lost 8 | . 8 . Power 1 | . 1 . Propulsion 3 | . 3 . Utility . | . . . Weapon 4 | . 4 . Highest Loss Streak 3 | . 3 . To Critical Strikes . | . . . Average Backups 4 | . 3 7 Power . | . 1 1 Propulsion . | . . . Utility 1 | . 1 3 Weapon 1 | . 1 2 Tool/Special . | . . . Unused Backups 4 | . . 4 Power 1 | . . 1 Propulsion . | . . . Utility 2 | . . 2 Weapon 1 | . . 1 Tool/Special . | . . . Average Slot Usage (%) 81 | . 85 57 Engine 11 | . 10 14 Treads 18 | . 20 . Device 12 | . 12 14 Storage 14 | . 14 14 Energy Gun 6 | . 7 . Ballistic Gun 17 | . 17 14 Peak Build Rating 8 | 6 8 7 Average Rating 6 | 4 6 6 On Entrance 4 | . 6 6 Avg Prop Armor Cover (%) . | . . . Naked Turns . | . . . Heaviest Build 18 | 10 18 17 Greatest Support 40 | 40 40 3 Greatest Overweight (x) 5 | . 5 5 Average Overweight (x) 1 | . . 5 Largest Inventory Capacity 10 | 8 10 10 Average Capacity 9 | 7 9 10 Most Carried 9 | 1 6 9 Average Carried 4 | . 3 8 Final Capacity 10 | 8 10 10 Final Carried 9 | 1 6 9 Class Distribution -------------------- 97% | Mutant Dominant Class ---------------- Mutant | -10/Materials Mutant | -10/Subcaves Resources | -11 -10 -10 ----------- Run | Yrd Mat Sub Matter Collected 456 | 118 304 34 Remotely . | . . . Salvage Created 598 | . 585 13 Parts 36 | . 33 3 Haulers Intercepted 1 | . 1 . Recyclers Shooed . | . . . Parts Field Recycled . | . . . Retrieved Matter . | . . . Parts Self-Destructed 6 | . . 6 Prevented . | . . . Parts Restored . | . . . Kills | -11 -10 -10 ------- Run | Yrd Mat Sub Combat Hostiles Destroyed 18 | . 17 1 Guns 18 | . 17 1 Classes Destroyed 3 | . 3 . Hauler 1 | . 1 . Swarmer 7 | . 6 1 Grunt 11 | . 11 . Best Kill Streak 7 | . 7 1 Combat Bots Only 7 | . 7 1 Max Kills in Single Turn 1 | . 1 1 Gunslinging . | . . . Exploded . | . . . Melee . | . . . Uniques/NPCs Destroyed . | . . . Combat | -11 -10 -10 -------- Run | Yrd Mat Sub Hostile Shots Fired 139 | . 134 5 Missed 34 | . 33 1 Hits 105 | . 101 4 Projectile 105 | . 101 4 Damage Taken 1166 | . 1078 88 Core 267 | . 199 68 Absorbed by Shields . | . . . Core Remaining (%) 100 | 100 . . Volleys Fired 92 | . 89 3 Largest 2 | . 2 1 Hottest 60 | . 60 20 Shots Fired 166 | . 163 3 Gun 166 | . 163 3 Cannon . | . . . Launcher . | . . . Special . | . . . Kinetic 127 | . 124 3 Thermal 39 | . 39 . Explosive . | . . . Electromagnetic . | . . . Robot Hit Streak 13 | . 13 3 Robot Miss Streak 3 | . 3 . Penetration Max . | . . . Secondary Targets 1 | . 1 . Max Gunslinging Chain 1 | . 1 . Shots Hit Robots 123 | . 120 3 Core Hits 39 | . 38 1 Critical Kills . | . . . Critical Parts Destroyed . | . . . Critical Strikes . | . . . Melee Attacks 5 | . 5 . Impact 5 | . 5 . Slashing . | . . . Piercing . | . . . Sneak Attacks . | . . . Combat Hostiles . | . . . Follow-up Attacks . | . . . Damage Inflicted 1107 | . 1092 15 Guns 1107 | . 1092 15 Cannons . | . . . Explosions . | . . . Melee . | . . . Ramming . | . . . Kinetic 734 | . 719 15 Thermal 373 | . 373 . Explosive . | . . . Electromagnetic . | . . . Impact . | . . . Slashing . | . . . Piercing . | . . . Highest Corruption . | . . . Average Corruption . | . . . Corruption Purged . | . . . Corruption Blocked . | . . . Overload Shots . | . . . Overflow Damage . | . . . Projectiles . | . . . Explosions . | . . . Melee . | . . . Knockbacks . | . . . Impact . | . . . Kinetic . | . . . Secondary . | . . . Self-Inflicted Damage . | . . . Shots . | . . . Rammed . | . . . Targets Rammed . | . . . Kicked . | . . . Crushed . | . . . Highest Temperature 12 | . 12 . Average Temperature 4 | . 4 . Received Heat Transfer 477 | . 465 12 Siege Activations . | . . . Martial Activations . | . . . Shielding Activations . | . . . Robots Disrupted . | . . . Combat Hostiles . | . . . Robots Corrupted . | . . . Combat Hostiles . | . . . Parts Fried . | . . . Impact Corruptions . | . . . Robots Melted . | . . . Combat Hostiles . | . . . Parts Melted . | . . . Heat Transferred 800 | . 800 . Parts Sabotaged . | . . . Parts Stolen . | . . . Parts Stripped . | . . . Power Chain Reactions . | . . . Alert | -11 -10 -10 ------- Run | Yrd Mat Sub Maximum Alert Level . | . . . Low Security (%) 100 | 100 100 . Level 1 . | . . . Level 2 . | . . . Level 3 . | . . . Level 4 . | . . . Level 5 . | . . . High Security . | . . . Max Security . | . . . Peak Influence 178 | . 178 . Initial . | . . . Average 64 | . 67 . Influence Increases 507 | . 487 20 Destroy 0b10 Robot/C 360 | . 340 20 Destroy 0b10 Robot/NC 5 | . 5 . Destroy Leader 92 | . 92 . Successful Hack 16 | . 16 . Destroy Structure 4 | . 4 . Lose Combat Pursuer 30 | . 30 . Influence Decreases 485 | . 347 138 Entered New Map 68 | . . 68 Time Decay 337 | . 267 70 Lost Part 80 | . 80 . Squads Dispatched 5 | . 5 . Investigation 2 | . 2 . Extermination . | . . . Reinforcement 3 | . 3 . Assault . | . . . Garrison . | . . . Intercept . | . . . Searches Triggered . | . . . Construction Impeded . | . . . Haulers Reinforced . | . . . Active Scanning Responses . | . . . Cargo Convoy Interrupts . | . . . Stealth | -11 -10 -10 --------- Run | Yrd Mat Sub Distress Signals 2 | . 2 . Communications Jammed . | . . . Distress Signals . | . . . Times Spotted 39 | . 35 4 Peak Tracking Total 7 | . 7 3 Tactical Retreats 2 | . 2 . Traps | -11 -10 -10 ------- Run | Yrd Mat Sub Traps Triggered 2 | . 2 . Indirectly . | . . . Trap Hack Attempts . | . . . Triggered . | . . . Disarmed . | . . . Reprogrammed . | . . . Reused . | . . . Traps Extracted . | . . . Installed . | . . . Triggered . | . . . Machines | -11 -10 -10 ---------- Run | Yrd Mat Sub Machines Disabled . | . . . Max in Single Turn . | . . . Machines Repaired . | . . . Machines Dismantled . | . . . Machines Sabotaged . | . . . Overloaded Fab Kills . | . . . Hacking | -11 -10 -10 --------- Run | Yrd Mat Sub Machines Accessed 5 | . 5 . Terminals 4 | . 4 . Fabricators . | . . . Repair Stations . | . . . Recycling Units 1 | . 1 . Scanalyzers . | . . . Garrison Access . | . . . Total Hacks 11 | . 11 . Successful 5 | . 5 . Failed 6 | . 6 . Catastrophic . | . . . Database Lockouts . | . . . Manual 9 | . 9 . Terminals 9 | . 9 . Fabricators . | . . . Repair Stations . | . . . Recycling Units 2 | . 2 . Scanalyzers . | . . . Garrison Access . | . . . Terminal Hacks 2 | . 2 . Robot Analysis 2 | . 2 . Fabricator Hacks . | . . . Repair Station Hacks . | . . . Recycling Unit Hacks 1 | . 1 . Retrieve Components 1 | . 1 . Scanalyzer . | . . . Garrison Access Hacks . | . . . Unauthorized Hacks 2 | . 2 . Terminals 2 | . 2 . Botnet 2 | . 2 . Fabricators . | . . . Repair Stations . | . . . Recycling Units . | . . . Scanalyzers . | . . . Garrison Access . | . . . Data Cores Recovered . | . . . Used . | . . . Hacking Detections 5 | . 5 . Full Trace Events . | . . . Feedback Events . | . . . Feedback Blocked . | . . . Robot Schematics Acquired . | . . . Robots Built . | . . . Authchips . | . . . Time . | . . . Total Robot Build Rating . | . . . Part Schematics Acquired . | . . . Parts Built . | . . . Authchips . | . . . Time . | . . . Total Part Build Rating . | . . . Part Studies Acquired . | . . . Parts Repaired . | . . . Time . | . . . Parts Recycled . | . . . Recycled Matter . | . . . Retrieved Matter . | . . . Retrieved Components . | . . . Parts Scanalyzed . | . . . Part Schematics Acquired . | . . . Parts Damaged . | . . . Bothacking | -11 -10 -10 ------------ Run | Yrd Mat Sub Used RIF Installer . | . . . Robots Hacked . | . . . Non-combat . | . . . Combat . | . . . Robot Hacks Applied . | . . . Relay Couplers Released . | . . . Fabnet Peak Effective % . | . . . Robots Rewired . | . . . Allies Hacked . | . . . Hacks Repelled . | . . . Allies | -11 -10 -10 -------- Run | Yrd Mat Sub Total Allies . | . . . Largest Group . | . . . Highest-Rated Group . | . . . Highest-Rated Ally . | . . . Total Orders . | . . . Ally Attacks . | . . . Total Damage . | . . . Kills . | . . . Allies Corrupted . | . . . Allies Melted . | . . . Intel | -11 -10 -10 ------- Run | Yrd Mat Sub Active Infowar (turns) . | . . . Robot Analysis Total 2 | . 2 . Derelict Logs Recovered . | . . . Drone Launches . | . . . Drone Recoveries . | . . . Exploration | -11 -10 -10 ------------- Run | Yrd Mat Sub Turns Passed 1282 | 53 1074 155 Spaces Moved 474 | 28 398 48 Core 116 | 3 65 48 Treads 358 | 25 333 . Legs . | . . . Wheels . | . . . Hover . | . . . Flight . | . . . Fastest Speed 50 | 50 160 300 Average Speed 191 | 148 181 300 Slowest Speed 300 | 160 300 300 Overloaded Moves . | . . . Propulsion Burnouts . | . . . Robots Hopped . | . . . Potential Cave-ins . | . . . Cave-ins Triggered . | . . . Exploration Rate (%) 23 | 4 59 7 Regions Visited 2 Branch Regions 1 Pre-discovered Areas . | . . . Known Exits Taken . | . . . Unknown Exits Taken 2 | 1 1 . Scrap Searched . | . . . Spaces Dug 4 | . 4 . Terrain Destroyed 4 | . 4 . Melee 4 | . 4 . Projectile . | . . . AOE . | . . . Terrain Rammed . | . . . Walls Destroyed . | . . . Machines Disabled . | . . . Actions | -11 -10 -10 --------- Run | Yrd Mat Sub Total 691 | 37 597 57 Wait 97 | 3 90 4 Move 472 | 27 397 48 Hop . | . . . Pick Up 7 | 1 4 2 Fast Attach 11 | 6 5 . Attach 1 | . 1 . Detach . | . . . Swap 6 | . 6 . Drop . | . . . Fire 92 | . 89 3 Melee 5 | . 5 . Ram . | . . . Kick . | . . . Crush . | . . . Escape Stasis . | . . . Rewire . | . . . Trap . | . . . Miscellaneous . | . . . Route ------- -11/Scrapyard -10/Materials (discovered 4 exits: [*Mat x2] / [*Min] / [*Sub]) -10/Subcaves History --------- Turn | Location | Event 6 | -11/Scrapyard | Discovered new exit (range 16) 54 | -11/Scrapyard | Entered Materials 249 | -10/Materials | Discovered new exit (range 10) 302 | -10/Materials | Build established: Mutant 692 | -10/Materials | Destroyed 7 combat bots 752 | -10/Materials | Discovered new exit (range 6) 804 | -10/Materials | Discovered new exit (range 16) 853 | -10/Materials | Core integrity fell below 50% 872 | -10/Materials | Lost 3 parts (2n1w) 1013 | -10/Materials | Lost 3 parts (1n2w) 1113 | -10/Materials | Discovered new exit (range 6) 1128 | -10/Materials | Entered Subcaves 1129 | -10/Subcaves | Approached by a straggling Scientist 1277 | -10/Subcaves | A Subdweller sparked back to life 1277 | -10/Subcaves | A Subdweller sparked back to life 1277 | -10/Subcaves | A Subdweller sparked back to life 1281 | -10/Subcaves | Core integrity fell below 20% 1283 | -10/Subcaves | Destroyed by JG-R4Z(R) with Subdweller Machine Gun Last Messages --------------- repair. 01207_ Subatomizers dissect the Flight Unit. 01209_ Flight Unit fries itself beyond repair. 01210_ Lgt. Ion Engine fries itself beyond repair. 01210_ Acquired 21 matter. 01211_ Flight Unit fries itself beyond repair. 01219_ Acquired Lgt. Assault Rifle. 01220_ Acquired 13 matter. 01223_ Flight Unit fries itself beyond repair. 3G-3Z5(c): "I think it's somewhere north of here" 01277_ JG-R4Z(R) creaks and sparks as it begins to move. 01277_ AO-PPP(R) creaks and sparks as it begins to move. 01277_ AX-G5K(R) creaks and sparks as it begins to move. 3G-3Z5(c): "I think it's somewhere north of here" Map ----- +----------------------------------------------------+ | ?????????????????????????????????????????????? | | ?????????????????????????????????????????????? | | ?????????????????????????????????????????????? | | ?????????????????????????????????????????????? | | ?????????????????????????????????????????????? | | ?????????????????????????????????????????????? | | ?????????????????????????????????????????????? | | ?????????????????????????????????????????????? | | ?????????????????????????????????????????????? | | ?????????????????????????????????????????????? | | ?????????????????????????????????????????????? | | ?????????????????????????????????????????????? | | ????????????????????????? ???????????????????? | | ????????????????????????# ???????????????????? | | ???????????????????? ##? ####????????????????? | | ???????????????????? # < #????????????????? | | ????????????????????? &#????????????????? | | ????????????????????? <